fUSD/lending_fUSD_20250617
["ID","MTS","AMOUNT","RATE_DAILY","PERIOD"]
[366229769,1750140647556,-490.0,0.00016465,2]
[366229770,1750140647566,-490.0,0.00016466,2]
[366229771,1750140647576,-490.0,0.00016466,2]
[366229772,1750140647585,-490.0,0.00016466,2]
[366229773,1750140647596,-490.0,0.00016466,2]
[366229774,1750140647606,-490.0,0.00016466,2]
[366229775,1750140647617,-490.0,0.00016466,2]
[366229776,1750140647626,-490.0,0.00016466,2]
[366229777,1750140647636,-490.0,0.00016466,2]
[366229778,1750140647646,-490.0,0.00016466,2]
[366229779,1750140647656,-490.0,0.00016466,2]
[366229780,1750140647667,-490.0,0.00016466,2]
[366229781,1750140647677,-490.0,0.00016466,2]
[366229782,1750140647687,-357.45,0.00016466,2]
[366229783,1750140647697,-490.0,0.00016466,2]
[366229784,1750140647707,-490.0,0.00016466,2]
[366229785,1750140647716,-490.0,0.00016466,2]
[366229786,1750140647726,-490.0,0.00016466,2]
[366229787,1750140647738,-490.0,0.00016466,2]
[366229788,1750140647748,-490.0,0.00016466,2]
[366229789,1750140647758,-490.0,0.00016466,2]
[366229790,1750140647768,-490.0,0.00016466,2]
[366229791,1750140647779,-530.26,0.00016466,2]
[366229792,1750140647790,-490.0,0.00016466,2]
[366229793,1750140647800,-490.0,0.00016466,2]
[366229794,1750140647810,-490.0,0.00016466,2]
[366229795,1750140647822,-490.0,0.00016466,2]
[366229796,1750140647832,-254.74,0.00016466,2]
[366229797,1750140647842,-490.0,0.00016466,2]
[366229798,1750140647852,-490.0,0.00016466,2]
[366229799,1750140647862,-490.0,0.00016466,2]
[366229800,1750140647872,-490.0,0.00016466,2]
[366229801,1750140647883,-490.0,0.00016466,2]
[366229802,1750140647893,-253.97,0.00016466,2]
[366229803,1750140647902,-560.36,0.00016466,2]
[366229804,1750140647912,-490.0,0.00016466,2]
[366229805,1750140647922,-490.0,0.00016466,2]
[366229806,1750140647932,-490.0,0.00016466,2]
[366229807,1750140647941,-490.0,0.00016466,2]
[366229808,1750140647951,-559.02,0.00016466,2]
[366229809,1750140647960,-582.24178023,0.00016466,2]
[366229810,1750140647970,-490.0,0.00016466,2]
[366229811,1750140647980,-151.0,0.00016466,2]
[366229812,1750140647991,-151.0,0.00016466,2]
[366229813,1750140648001,-490.0,0.00016466,2]
[366229814,1750140648011,-490.0,0.00016466,2]
[366229815,1750140648022,-151.0,0.00016466,2]
[366229816,1750140648032,-490.0,0.00016466,2]
[366229817,1750140648042,-219.07,0.00016466,2]
[366229818,1750140648052,-490.0,0.00016466,2]
[366229819,1750140648065,-490.0,0.00016466,2]
[366229820,1750140648078,-490.0,0.00016466,2]
[366229821,1750140648094,-151.0,0.00016466,2]
[366229822,1750140648109,-149.86760725,0.00016466,2]
[366229823,1750140648130,-376.06239275,0.00016466,2]
[366229824,1750140648143,-151.0,0.00016466,2]
[366229825,1750140648154,-151.0,0.00016466,2]
[366229826,1750140648167,-490.0,0.00016466,2]
[366229827,1750140648179,-490.0,0.00016466,2]
[366229828,1750140648192,-490.0,0.00016466,2]
[366229829,1750140648205,-323.42384416,0.00016466,2]
[366229830,1750140648219,-2685.19,0.00016466,2]
[366229831,1750140648234,-1858.779066,0.00016466,2]
[366229832,1750140648274,-359.2599057,0.00016466,2]
[366229833,1750140648769,-490.0,0.00016451,2]
[366229834,1750140648785,-490.0,0.00016464,2]
[366229835,1750140648799,-490.0,0.00016464,2]
[366229836,1750140648811,-595.02917241,0.00016466,2]
[366229837,1750140648829,-378.43528873,0.00016466,2]
[366229838,1750140648843,-1635.392723,0.00016466,2]
[366229839,1750140648854,-527.0,0.00016466,2]
[366229840,1750140648867,-490.0,0.00016466,2]
[366229841,1750140648879,-490.0,0.00016466,2]
[366229842,1750140648892,-490.0,0.00016466,2]
[366229843,1750140648906,-357.03,0.00016466,2]
[366229844,1750140648919,-490.0,0.00016466,2]
[366229845,1750140648931,-3027.27,0.00016466,2]
[366229846,1750140648943,-490.0,0.00016466,2]
[366229847,1750140648954,-743.0,0.00016466,2]
[366229848,1750140648965,-572.25620265,0.00016466,2]
[366229849,1750140648975,-861.3,0.00016466,2]
[366229850,1750140648986,-563.32,0.00016466,2]
[366229851,1750140649004,-490.0,0.00016466,2]
[366229852,1750140649016,-51.14548575,0.00016466,2]
[366229853,1750140649030,-99.85451425,0.00016466,2]
[366229854,1750140649042,-490.0,0.00016466,2]
[366229855,1750140649053,-102.3158693,0.00016466,2]
[366229856,1750140649088,-387.6841307,0.00016466,2]
[366229857,1750140649099,-151.0,0.00016466,2]
[366229858,1750140649111,-1034.59,0.00016466,2]
[366229859,1750140649122,-490.0,0.00016466,2]
[366229860,1750140649134,-151.0,0.00016466,2]
[366229861,1750140649145,-490.0,0.00016466,2]
[366229862,1750140649157,-3454.06,0.00016466,2]
[366229863,1750140649169,-490.0,0.00016466,2]
[366229864,1750140649180,-490.0,0.00016466,2]
[366229865,1750140649192,-490.0,0.00016466,2]
[366229866,1750140649204,-103.0111681,0.00016466,2]
[366229867,1750140649218,-269.24704914,0.00016466,2]
[366229868,1750140649232,-117.74178276,0.00016466,2]
[366229869,1750140649245,-312.22,0.00016466,2]
[366229870,1750140649256,-1396.60232406,0.00016466,2]
[366229871,1750140649275,-1360.33767594,0.00016466,2]
[366229872,1750140649287,-2028.84,0.00016466,2]
[366229873,1750140649299,-490.0,0.00016466,2]
[366229874,1750140649311,-1000.0,0.00016466,2]
[366229875,1750140649322,-490.0,0.00016466,2]
[366229876,1750140649334,-490.0,0.00016466,2]
[366229877,1750140649345,-151.0,0.00016466,2]
[366229878,1750140649357,-151.0,0.00016466,2]
[366229879,1750140649369,-490.0,0.00016466,2]
[366229880,1750140649380,-490.0,0.00016466,2]
[366229881,1750140649391,-151.0,0.00016466,2]
[366229882,1750140649402,-490.0,0.00016466,2]
[366229883,1750140649413,-4026.28,0.00016466,2]
[366229884,1750140649425,-151.0,0.00016466,2]
[366229885,1750140649436,-490.0,0.00016466,2]
[366229886,1750140649448,-490.0,0.00016466,2]
[366229887,1750140649459,-490.0,0.00016466,2]
[366229888,1750140649470,-151.0,0.00016466,2]
[366229889,1750140649482,-490.0,0.00016466,2]
[366229890,1750140649494,-151.0,0.00016466,2]
[366229891,1750140649505,-151.0,0.00016466,2]
[366229892,1750140649516,-490.0,0.00016466,2]
[366229893,1750140649527,-490.0,0.00016466,2]
[366229894,1750140649538,-151.0,0.00016466,2]
[366229895,1750140649550,-151.0,0.00016466,2]
[366229896,1750140649561,-700.0,0.00016466,2]
[366229897,1750140649572,-490.0,0.00016466,2]
[366229898,1750140649583,-151.0,0.00016466,2]
[366229899,1750140649594,-151.0,0.00016466,2]
[366229900,1750140649605,-151.0,0.00016466,2]
[366229901,1750140649616,-490.0,0.00016466,2]
[366229902,1750140649627,-490.0,0.00016466,2]
[366229903,1750140649639,-295.210028,0.00016466,2]
[366229904,1750140649651,-490.0,0.00016466,2]
[366229905,1750140649662,-353.28,0.00016466,2]
[366229906,1750140649674,-295.210028,0.00016466,2]
[366229907,1750140649685,-490.0,0.00016466,2]
[366229908,1750140649697,-5688.68,0.00016466,2]
[366229909,1750140649709,-151.0,0.00016466,2]
[366229910,1750140649721,-490.0,0.00016466,2]
[366229911,1750140649734,-152.187968,0.00016466,2]
[366229912,1750140649748,-490.0,0.00016466,2]
[366229913,1750140649760,-490.0,0.00016466,2]
[366229914,1750140649771,-721.43,0.00016466,2]
[366229915,1750140649784,-199.319751,0.00016467,2]
[366229916,1750140649795,-199.377043,0.00016467,2]
[366229917,1750140649807,-199.377043,0.00016467,2]
[366229918,1750140649820,-151.576289,0.00016467,2]
[366229919,1750140649832,-151.0,0.00016467,2]
[366229920,1750140649843,-151.0,0.00016467,2]
[366229921,1750140649855,-151.0,0.00016467,2]
[366229922,1750140649867,-153.50985,0.00016467,2]
[366229923,1750140649880,-153.50985,0.00016467,2]
[366229924,1750140649891,-151.0,0.00016467,2]
[366229925,1750140649903,-151.0,0.00016467,2]
[366229926,1750140649914,-153.094457,0.00016467,2]
[366229927,1750140649926,-151.0,0.00016467,2]
[366229928,1750140649939,-290.02811,0.00016467,2]
[366229929,1750140649951,-151.0,0.00016467,2]
[366229930,1750140649962,-151.0,0.00016467,2]
[366229931,1750140649973,-519.166107,0.00016467,2]
[366229932,1750140649983,-519.166107,0.00016467,2]
[366229933,1750140649996,-151.0,0.00016467,2]
[366229934,1750140650007,-151.0,0.00016467,2]
[366229935,1750140650017,-151.308807,0.00016467,2]
[366229936,1750140650030,-151.0,0.00016467,2]
[366229937,1750140650043,-184.04576,0.00016467,2]
[366229938,1750140650055,-184.04576,0.00016467,2]
[366229939,1750140650066,-151.0,0.00016467,2]
[366229940,1750140650078,-317.65111884,0.00016467,2]
[366229941,1750140650090,-490.0,0.00016467,2]
[366229942,1750140650101,-490.0,0.00016467,2]
[366229943,1750140650112,-169.91544626,0.00016467,2]
[366229944,1750140650123,-151.0,0.00016467,2]
[366229945,1750140650135,-490.0,0.00016467,2]
[366229946,1750140650147,-490.0,0.00016467,2]
[366229947,1750140650158,-208.623517,0.00016467,2]
[366229948,1750140650169,-152.032317,0.00016467,2]
[366229949,1750140650180,-490.0,0.00016467,2]
[366229950,1750140650191,-240.54,0.00016467,2]
[366229951,1750140650203,-578.87,0.00016467,2]
[366229952,1750140650214,-490.0,0.00016467,2]
[366229953,1750140650225,-151.0,0.00016467,2]
[366229954,1750140650236,-151.0,0.00016467,2]
[366229955,1750140650246,-547.84491429,0.00016467,2]
[366229956,1750140650258,-151.823398,0.00016467,2]
[366229957,1750140650269,-490.0,0.00016467,2]
[366229958,1750140650280,-151.0,0.00016467,2]
[366229959,1750140650291,-490.0,0.00016467,2]
[366229960,1750140650307,-490.0,0.00016467,2]
[366229961,1750140650324,-490.0,0.00016467,2]
[366229962,1750140650335,-320.83,0.00016467,2]
[366229963,1750140650347,-151.0,0.00016467,2]
[366229964,1750140650359,-151.0,0.00016467,2]
[366229965,1750140650371,-151.0,0.00016467,2]
[366229966,1750140650382,-151.0,0.00016467,2]
[366229967,1750140650393,-151.0,0.00016467,2]
[366229968,1750140650404,-151.0,0.00016467,2]
[366229969,1750140650415,-151.0,0.00016467,2]
[366229970,1750140650427,-306.262325,0.00016467,2]
[366229971,1750140650438,-658.620436,0.00016467,2]
[366229972,1750140650449,-306.262325,0.00016467,2]
[366229973,1750140650461,-658.620436,0.00016467,2]
[366229974,1750140650472,-200.181492,0.00016467,2]
[366229975,1750140650484,-1538.498197,0.00016467,2]
[366229976,1750140650497,-280.768921,0.00016467,2]
[366229977,1750140650508,-151.0,0.00016467,2]
[366229978,1750140650520,-152.961849,0.00016467,2]
[366229979,1750140650532,-151.74863,0.00016467,2]
[366229980,1750140650543,-250.592298,0.00016467,2]
[366229981,1750140650554,-151.0,0.00016467,2]
[366229982,1750140650566,-151.0,0.00016467,2]
[366229983,1750140650577,-152.499745,0.00016467,2]
[366229984,1750140650588,-151.0,0.00016467,2]
[366229985,1750140650600,-151.0,0.00016467,2]
[366229986,1750140650611,-151.0,0.00016467,2]
[366229987,1750140650623,-151.0,0.00016467,2]
[366229988,1750140650634,-282.204884,0.00016467,2]
[366229989,1750140650645,-650.422635,0.00016467,2]
[366229990,1750140650656,-282.204884,0.00016467,2]
[366229991,1750140650667,-650.422635,0.00016467,2]
[366229992,1750140650679,-369.601322,0.00016467,2]
[366229993,1750140650690,-260.935847,0.00016467,2]
[366229994,1750140650701,-369.601322,0.00016467,2]
[366229995,1750140650712,-151.0,0.00016467,2]
[366229996,1750140650723,-151.0,0.00016467,2]
[366229997,1750140650736,-151.0,0.00016467,2]
[366229998,1750140650748,-151.0,0.00016467,2]
[366229999,1750140650760,-151.0,0.00016467,2]
[366230000,1750140650771,-151.0,0.00016467,2]
[366230001,1750140650784,-151.0,0.00016467,2]
[366230002,1750140650795,-151.0,0.00016467,2]
[366230003,1750140650806,-151.0,0.00016467,2]
[366230004,1750140650819,-151.0,0.00016467,2]
[366230005,1750140650830,-151.0,0.00016467,2]
[366230006,1750140650842,-151.0,0.00016467,2]
[366230007,1750140650854,-151.0,0.00016467,2]
[366230008,1750140650866,-295.210028,0.00016467,2]
[366230009,1750140650877,-295.210028,0.00016467,2]
[366230010,1750140650888,-200.0,0.00016467,2]
[366230011,1750140650900,-151.206571,0.00016469,2]
[366230012,1750140650912,-151.0,0.00016469,2]
[366230013,1750140650924,-151.0,0.00016469,2]
[366230014,1750140650937,-260.009111,0.00016469,2]
[366230015,1750140650948,-151.0,0.00016469,2]
[366230016,1750140650960,-151.0,0.00016469,2]
[366230017,1750140650972,-199.377043,0.00016469,2]
[366230018,1750140650991,-199.377043,0.00016469,2]
[366230019,1750140651004,-151.0,0.00016469,2]
[366230020,1750140651016,-151.0,0.00016469,2]
[366230021,1750140651027,-152.725962,0.00016469,2]
[366230022,1750140651039,-151.0,0.00016469,2]
[366230023,1750140651051,-151.949545,0.00016469,2]
[366230024,1750140651062,-151.630631,0.00016469,2]
[366230025,1750140651073,-279.829251,0.00016469,2]
[366230026,1750140651084,-2040.4314819,0.00016469,2]
[366230027,1750140651100,-323.08114491,0.00016469,2]
[366230028,1750140651113,-970.07352419,0.00016469,2]
[366230029,1750140651124,-3333.586151,0.00016469,2]
[366230030,1750140651135,-151.0,0.00016469,2]
[366230031,1750140651146,-151.0,0.00016469,2]
[366230032,1750140651157,-2931.89548143,0.00016471,2]
[366230033,1750140662956,645093.60848049,0.0001645,120]
[366230034,1750140662998,4425.98070464,0.0001645,120]
[366230035,1750140663024,224589.40929318,0.0001645,120]
[366230036,1750140671516,200.0,0.00015062,2]
[366230037,1750140709628,500.0,0.00013164,2]
[366230038,1750140723805,150.0,0.00015493,4]
[366230039,1750140821842,207.0,0.00015062,2]
[366230040,1750140867076,250.0,0.00015361,2]
[366230041,1750141007871,666.0,0.00015439,2]
[366230042,1750141079529,219.0,0.0002,120]
[366230044,1750141212279,250.0,0.00015,2]
[366230045,1750141331696,201.0,0.00015045,2]
[366230046,1750141468825,337.65,0.00013699,2]
[366230047,1750141509496,150.0,0.00015288,2]
[366230048,1750141556126,157.31,0.00015427,2]
[366230049,1750141556344,157.31,0.00015453,2]
[366230050,1750141556565,157.31,0.00015478,2]
[366230051,1750141617823,1000.0,0.00015433,2]
[366230052,1750141631425,201.0,0.00015045,2]
[366230053,1750141691698,201.0,0.00014736,2]
[366230054,1750141691969,201.0,0.00015443,2]
[366230056,1750141719820,53170.78220602,0.000151,2]
[366230084,1750141832004,-157.31,0.00015504,2]
[366230085,1750141832015,-250.0,0.00015518,2]
[366230086,1750141832026,-20.28297226,0.00015531,2]
[366230087,1750141832064,-144.98702774,0.00015531,2]
[366230088,1750141832075,-1396.62,0.0001554,2]
[366230089,1750141832084,-300.0,0.00015718,2]
[366230090,1750141832095,-274.20063452,0.00015904,2]
[366230091,1750141832123,-225.79936548,0.00015904,2]
[366230092,1750141832134,-201.0,0.00016151,3]
[366230093,1750141832144,-500.0,0.00016164,2]
[366230094,1750141832154,-1.64427474,0.00016171,2]
[366230095,1750141832165,-148.35572526,0.00016171,2]
[366230096,1750141832175,-588.84270478,0.00016193,2]
[366230097,1750141832184,-207.4,0.00016193,2]
[366230098,1750141832194,-150.0,0.00016195,2]
[366230099,1750141832204,-363.36254739,0.00016202,2]
[366230100,1750141832225,-836.63745261,0.00016202,2]
[366230101,1750141832235,-2757.3556,0.00016203,2]
[366230102,1750141832244,-152.34,0.00016203,2]
[366230103,1750141832254,-150.0,0.00016209,2]
[366230104,1750141832264,-150.0,0.0001621,2]
[366230105,1750141832274,-150.0,0.00016214,2]
[366230106,1750141832284,-1683.21831318,0.00016247,2]
[366230107,1750141832294,-1000.0,0.00016248,2]
[366230108,1750141832305,-191.33584349,0.00016249,2]
[366230109,1750141832317,-150.0,0.00016269,2]
[366230110,1750141832327,-922.48,0.000163,2]
[366230111,1750141832337,-1000.0,0.000163,2]
[366230112,1750141832348,-150.0,0.00016306,2]
[366230113,1750141832358,-183.46041396,0.00016316,2]
[366230114,1750141832368,-168.0,0.00016318,2]
[366230115,1750141832378,-909.349685,0.00016322,2]
[366230116,1750141832388,-150.0,0.00016344,2]
[366230117,1750141832398,-150.0,0.00016349,2]
[366230118,1750141832409,-151.0,0.00016354,2]
[366230119,1750141832419,-168.4756,0.00016363,2]
[366230120,1750141832428,-150.0,0.00016376,2]
[366230121,1750141832438,-150.0,0.00016382,2]
[366230122,1750141832448,-150.0,0.00016391,2]
[366230123,1750141832458,-10140.87473237,0.000164,2]
[366230124,1750141832489,-1264.9584232,0.000164,2]
[366230125,1750141832501,-310.17040042,0.000164,2]
[366230131,1750141838696,4189.0,0.000148,5]
[366230132,1750141840103,-8619.08873513,0.000164,2]
[366230133,1750141840116,-8947.21879473,0.000164,2]
[366230134,1750141840128,-8943.78386462,0.000164,2]
[366230135,1750141840140,-9077.54866152,0.000164,2]
[366230136,1750141840154,-8943.84023489,0.000164,2]
[366230137,1750141840166,-295.16859999,0.000164,2]
[366230138,1750141840219,-380.81282777,0.000164,2]
[366230139,1750141840231,-658.65039315,0.000164,2]
[366230140,1750141840243,-2832.75734747,0.000164,2]
[366230141,1750141840253,-150.0,0.00016401,2]
[366230142,1750141840264,-150.0,0.00016419,2]
[366230143,1750141840275,-1889.7147,0.00016422,2]
[366230144,1750141840284,-674.16967513,0.00016452,2]
[366230145,1750141840602,-1085.40232487,0.00016452,2]
[366230146,1750141840613,-2440.93017347,0.00016454,2]
[366230147,1750141840623,-6238.92314977,0.00016454,2]
[366230148,1750141840634,-169.97437169,0.00016455,2]
[366230149,1750141840645,-610.612,0.00016455,2]
[366230150,1750141840656,-490.0,0.00016463,2]
[366230151,1750141840665,-490.0,0.00016463,2]
[366230152,1750141840676,-490.0,0.00016463,2]
[366230153,1750141840685,-490.0,0.00016463,2]
[366230154,1750141840697,-490.0,0.00016463,2]
[366230155,1750141840716,-490.0,0.00016463,2]
[366230156,1750141840728,-490.0,0.00016463,2]
[366230157,1750141840739,-490.0,0.00016463,2]
[366230158,1750141840956,-490.0,0.00016463,2]
[366230159,1750141840967,-490.0,0.00016463,2]
[366230160,1750141840976,-490.0,0.00016463,2]
[366230161,1750141840987,-523.0,0.00016466,2]
[366230162,1750141840997,-151.249662,0.00016466,2]
[366230163,1750141841007,-271.37897,0.00016466,2]
[366230164,1750141841017,-271.37897,0.00016466,2]
[366230165,1750141841028,-151.0,0.00016466,2]
[366230166,1750141841037,-151.0,0.00016466,2]
[366230167,1750141841048,-151.0,0.00016466,2]
[366230168,1750141841057,-151.0,0.00016466,2]
[366230169,1750141841067,-643.45327741,0.00016471,2]
[366230170,1750141841077,-157.03307732,0.00016471,2]
[366230171,1750141841087,-169.91544626,0.00016471,2]
[366230172,1750141841097,-2440.93017331,0.00016477,2]
[366230173,1750141841107,-200.0,0.00016478,2]
[366230174,1750141841117,-200.0,0.00016479,2]
[366230175,1750141841127,-200.0,0.0001648,2]
[366230176,1750141841137,-3575.34875884,0.0001648,2]
[366230177,1750141841147,-200.0,0.00016481,2]
[366230178,1750141841157,-2000.0,0.00016481,2]
[366230179,1750141841434,-200.0,0.00016483,2]
[366230180,1750141841445,-206.63395963,0.00016484,2]
[366230181,1750141841455,-200.0,0.00016484,2]
[366230182,1750141841465,-200.0,0.00016486,2]
[366230183,1750141841475,-621.17035069,0.00016487,2]
[366230184,1750141841484,-162.69916967,0.00016487,2]
[366230185,1750141841494,-1225.99604549,0.00016487,2]
[366230186,1750141841504,-200.0,0.00016489,2]
[366230187,1750141841514,-200.0,0.00016489,2]
[366230188,1750141841526,-1624.0,0.0001649,2]
[366230189,1750141841538,-200.0,0.00016491,2]
[366230190,1750141841547,-200.0,0.00016493,2]
[366230191,1750141841557,-200.0,0.00016494,2]
[366230192,1750141841567,-200.0,0.00016494,2]
[366230193,1750141841576,-2000.0,0.00016495,2]
[366230194,1750141841586,-500.0,0.00016495,2]
[366230195,1750141841596,-200.0,0.00016495,2]
[366230196,1750141841606,-6988.51338261,0.00016496,2]
[366230197,1750141841620,-11355.80267709,0.00016496,2]
[366230198,1750141841630,-200.0,0.00016499,2]
[366230199,1750141841640,-2440.93017331,0.00016501,2]
[366230200,1750141841650,-6238.92314969,0.00016504,2]
[366230201,1750141841660,-151.0,0.00016507,2]
[366230202,1750141841669,-2000.0,0.00016508,2]
[366230203,1750141841680,-151.0,0.00016512,2]
[366230204,1750141841690,-151.0,0.00016512,2]
[366230205,1750141841700,-2000.0,0.00016522,2]
[366230206,1750141841710,-2440.93017331,0.00016524,2]
[366230207,1750141841719,-153.444897,0.00016527,2]
[366230208,1750141841729,-271.37897,0.00016527,2]
[366230209,1750141841739,-271.37897,0.00016527,2]
[366230210,1750141841748,-151.0,0.00016527,2]
[366230211,1750141841758,-187.526578,0.00016527,2]
[366230212,1750141841767,-151.0,0.00016527,2]
[366230213,1750141841781,-2138.2223,0.00016528,2]
[366230214,1750141841791,-621.17035067,0.00016533,2]
[366230215,1750141841800,-169.97437169,0.00016544,2]
[366230216,1750141841810,-326.61617862,0.00016545,2]
[366230217,1750141841820,-2440.93017331,0.00016548,2]
[366230218,1750141841829,-1763.80216497,0.00016553,2]
[366230219,1750141841841,-302.0,0.00016553,2]
[366230220,1750141841866,-3850.0,0.00016553,2]
[366230221,1750141841878,-323.12098472,0.00016553,2]
[366230222,1750141841887,-13.37401528,0.00016554,2]
[366230223,1750141841899,-138.96598472,0.00016554,2]
[366230224,1750141841909,-490.0,0.00016554,2]
[366230225,1750141841919,-490.0,0.00016554,2]
[366230226,1750141841928,-490.0,0.00016554,2]
[366230227,1750141841938,-490.0,0.00016554,2]
[366230228,1750141841948,-709.26,0.00016554,2]
[366230229,1750141841957,-534.08,0.00016554,2]
[366230230,1750141841967,-490.0,0.00016554,2]
[366230231,1750141841977,-541.04,0.00016554,2]
[366230232,1750141841987,-639.32,0.00016554,2]
[366230233,1750141841996,-126.66339826,0.00016554,2]
[366230234,1750141842016,-363.33660174,0.00016554,2]
[366230235,1750141842027,-490.0,0.00016554,2]
[366230236,1750141842037,-1374.13,0.00016554,2]
[366230237,1750141842047,-490.0,0.00016554,2]
[366230238,1750141842057,-1080.88,0.00016554,2]
[366230239,1750141842066,-520.81,0.00016554,2]
[366230240,1750141842076,-490.0,0.00016554,2]
[366230241,1750141842086,-971.81,0.00016554,2]
[366230242,1750141842096,-1002.05,0.00016554,2]
[366230243,1750141842106,-490.0,0.00016554,2]
[366230244,1750141842115,-490.0,0.00016554,2]
[366230245,1750141842125,-490.0,0.00016554,2]
[366230246,1750141842134,-490.0,0.00016554,2]
[366230247,1750141842144,-490.0,0.00016554,2]
[366230248,1750141842153,-490.0,0.00016554,2]
[366230249,1750141842163,-490.0,0.00016554,2]
[366230250,1750141842172,-490.0,0.00016554,2]
[366230251,1750141842181,-1299.59,0.00016554,2]
[366230252,1750141842191,-490.0,0.00016554,2]
[366230253,1750141842200,-239.33163789,0.00016554,2]
[366230254,1750141842357,-250.66836211,0.00016554,2]
[366230255,1750141842366,-1247.84,0.00016554,2]
[366230256,1750141842377,-490.0,0.00016554,2]
[366230257,1750141842387,-490.0,0.00016554,2]
[366230258,1750141842398,-490.0,0.00016554,2]
[366230259,1750141842408,-628.41,0.00016554,2]
[366230260,1750141842418,-490.0,0.00016554,2]
[366230261,1750141842427,-490.0,0.00016554,2]
[366230262,1750141842437,-550.64463862,0.00016554,2]
[366230263,1750141842448,-508.22,0.00016554,2]
[366230264,1750141842457,-490.0,0.00016554,2]
[366230265,1750141842466,-1071.79,0.00016554,2]
[366230266,1750141842476,-490.0,0.00016554,2]
[366230267,1750141842486,-1636.39,0.00016554,2]
[366230268,1750141842495,-490.0,0.00016554,2]
[366230269,1750141842505,-490.0,0.00016554,2]
[366230270,1750141842514,-889.7,0.00016554,2]
[366230271,1750141842526,-497.13,0.00016554,2]
[366230272,1750141842536,-729.75,0.00016554,2]
[366230273,1750141842545,-490.0,0.00016554,2]
[366230274,1750141842555,-490.0,0.00016554,2]
[366230275,1750141842564,-490.0,0.00016554,2]
[366230276,1750141842573,-887.26,0.00016554,2]
[366230277,1750141842583,-490.0,0.00016554,2]
[366230278,1750141842593,-490.0,0.00016554,2]
[366230279,1750141842603,-490.0,0.00016554,2]
[366230280,1750141842612,-490.0,0.00016554,2]
[366230281,1750141842623,-490.0,0.00016554,2]
[366230282,1750141842633,-1713.51,0.00016554,2]
[366230283,1750141842643,-490.0,0.00016554,2]
[366230284,1750141842652,-97.32479325,0.00016554,2]
[366230285,1750141842908,201.0,0.00014736,2]
[366230288,1750141843085,-672.54591315,0.00016554,2]
[366230289,1750141843143,-1012.9792936,0.00016554,2]
[366230290,1750141843153,-1426.29,0.00016554,2]
[366230291,1750141843163,-490.0,0.00016554,2]
[366230292,1750141843173,-490.0,0.00016554,2]
[366230293,1750141843183,-1434.51,0.00016554,2]
[366230294,1750141843193,-249.98461062,0.00016554,2]
[366230295,1750141843203,-1314.11,0.00016554,2]
[366230296,1750141843212,-799.43,0.00016554,2]
[366230297,1750141843222,-490.0,0.00016554,2]
[366230298,1750141843232,-490.0,0.00016554,2]
[366230299,1750141843241,-490.0,0.00016554,2]
[366230300,1750141843249,-490.0,0.00016554,2]
[366230301,1750141843258,-1970.19,0.00016554,2]
[366230302,1750141843267,-490.0,0.00016554,2]
[366230303,1750141843277,-1162.79,0.00016554,2]
[366230304,1750141843286,-490.0,0.00016554,2]